lending/lending_fUSD_20240411
["ID","MTS","AMOUNT","RATE_DAILY","PERIOD"]
[322147040,1712849455561,-4069.08,0.00032876,2]
[322147041,1712849455571,-500.0,0.00032876,2]
[322147042,1712849455580,-500.0,0.00032876,2]
[322147043,1712849455590,-500.0,0.00032876,2]
[322147044,1712849455601,-2029.72,0.00032876,2]
[322147045,1712849455612,-500.0,0.00032876,2]
[322147046,1712849455622,-500.0,0.00032876,2]
[322147047,1712849455631,-504.09,0.00032876,2]
[322147048,1712849455640,-507.13,0.00032876,2]
[322147049,1712849455650,-2120.59,0.00032876,2]
[322147050,1712849455660,-3013.87,0.00032876,2]
[322147051,1712849455671,-3045.31,0.00032876,2]
[322147052,1712849455681,-500.0,0.00032876,2]
[322147053,1712849455691,-1712.88,0.00032876,2]
[322147054,1712849455701,-18892.9,0.00032876,2]
[322147055,1712849455710,-500.0,0.00032876,2]
[322147056,1712849455721,-7781.66,0.00032876,2]
[322147057,1712849455731,-360.41668064,0.00032876,2]
[322147058,1712849455743,-663.44,0.00032876,2]
[322147059,1712849455754,-2920.97,0.00032876,2]
[322147060,1712849455763,-500.0,0.00032876,2]
[322147061,1712849455772,-500.0,0.00032876,2]
[322147062,1712849455782,-500.0,0.00032876,2]
[322147063,1712849455791,-500.0,0.00032876,2]
[322147064,1712849455801,-1481.21,0.00032876,2]
[322147065,1712849455810,-500.0,0.00032876,2]
[322147066,1712849455820,-438.63789478,0.00032876,2]
[322147067,1712849455828,-1283.3500742,0.00032876,2]
[322147068,1712849455845,-1457.2099258,0.00032876,2]
[322147069,1712849455854,-500.0,0.00032876,2]
[322147070,1712849455864,-295.54637029,0.00032876,2]
[322147071,1712849455873,-25029.6,0.00032876,2]
[322147072,1712849455883,-500.0,0.00032876,2]
[322147073,1712849455892,-1233.44,0.00032876,2]
[322147074,1712849455901,-500.0,0.00032876,2]
[322147075,1712849455910,-500.0,0.00032876,2]
[322147076,1712849455920,-3698.02,0.00032876,2]
[322147077,1712849455929,-589.46,0.00032876,2]
[322147078,1712849455938,-564.52237777,0.00032876,2]
[322147079,1712849455948,-2676.15,0.00032876,2]
[322147080,1712849455957,-500.0,0.00032876,2]
[322147081,1712849455966,-733.93,0.00032876,2]
[322147082,1712849455975,-1395.63,0.00032876,2]
[322147083,1712849455985,-19021.92,0.00032876,2]
[322147084,1712849455994,-468.22786207,0.00032876,2]
[322147085,1712849456004,-500.0,0.00032876,2]
[322147086,1712849456014,-526.84218474,0.00032876,2]
[322147087,1712849456023,-603.3,0.00032876,2]
[322147088,1712849456033,-5151.39,0.00032876,2]
[322147089,1712849456042,-577.04,0.00032876,2]
[322147090,1712849456052,-500.0,0.00032876,2]
[322147091,1712849456064,-3540.65,0.00032876,2]
[322147092,1712849456074,-438.56007024,0.00032876,2]
[322147093,1712849456083,-500.0,0.00032876,2]
[322147094,1712849456093,-3858.98,0.00032876,2]
[322147095,1712849456102,-500.0,0.00032876,2]
[322147096,1712849456112,-500.0,0.00032876,2]
[322147097,1712849456121,-500.0,0.00032876,2]
[322147098,1712849456131,-500.0,0.00032876,2]
[322147099,1712849456140,-473.11328709,0.00032876,2]
[322147100,1712849456150,-6342.02,0.00032876,2]
[322147101,1712849456159,-500.0,0.00032876,2]
[322147102,1712849456168,-1440.39,0.00032876,2]
[322147103,1712849456178,-500.0,0.00032876,2]
[322147104,1712849456188,-500.0,0.00032876,2]
[322147105,1712849456197,-500.0,0.00032876,2]
[322147106,1712849456207,-481.34356663,0.00032876,2]
[322147107,1712849456220,-1140.47,0.00032876,2]
[322147108,1712849456230,-7450.02,0.00032876,2]
[322147109,1712849456239,-500.0,0.00032876,2]
[322147110,1712849456249,-500.0,0.00032876,2]
[322147111,1712849456265,-500.0,0.00032876,2]
[322147112,1712849456275,-68498.41,0.00032876,2]
[322147113,1712849456285,-1684.06,0.00032876,2]
[322147114,1712849456295,-656.86,0.00032876,2]
[322147115,1712849456306,-500.0,0.00032876,2]
[322147116,1712849456316,-981.52,0.00032876,2]
[322147117,1712849456326,-950.3,0.00032876,2]
[322147118,1712849456335,-530.62,0.00032876,2]
[322147119,1712849456346,-500.0,0.00032876,2]
[322147120,1712849456355,-500.0,0.00032876,2]
[322147121,1712849456364,-4532.46,0.00032876,2]
[322147122,1712849456374,-3250.01,0.00032876,2]
[322147123,1712849456383,-5610.75,0.00032876,2]
[322147124,1712849456393,-2114.09,0.00032876,2]
[322147125,1712849456403,-1944.81,0.00032876,2]
[322147126,1712849456413,-508.36763714,0.00032876,2]
[322147127,1712849456423,-906.47,0.00032876,2]
[322147128,1712849456435,-263.82748884,0.00032876,2]
[322147129,1712849456445,-8488.99,0.00032876,2]
[322147130,1712849456454,-11728.85,0.00032876,2]
[322147131,1712849456464,-1530.36,0.00032876,2]
[322147132,1712849456473,-3786.31,0.00032876,2]
[322147133,1712849456483,-500.0,0.00032876,2]
[322147134,1712849456493,-500.0,0.00032876,2]
[322147135,1712849456508,-500.0,0.00032876,2]
[322147136,1712849456518,-669.13,0.00032876,2]
[322147137,1712849456528,-500.0,0.00032876,2]
[322147138,1712849456538,-1235.58,0.00032876,2]
[322147139,1712849456547,-1625.3,0.00032876,2]
[322147140,1712849456557,-500.0,0.00032876,2]
[322147141,1712849456567,-5754.97,0.00032876,2]
[322147142,1712849456577,-500.0,0.00032876,2]
[322147143,1712849456586,-2609.61,0.00032876,2]
[322147144,1712849456596,-3150.83,0.00032876,2]
[322147145,1712849456606,-2442.3,0.00032876,2]
[322147146,1712849456615,-4288.39,0.00032876,2]
[322147147,1712849456625,-776.17,0.00032876,2]
[322147148,1712849456635,-500.0,0.00032876,2]
[322147149,1712849456644,-500.0,0.00032876,2]
[322147150,1712849456653,-4166.69,0.00032876,2]
[322147151,1712849456663,-7623.3,0.00032876,2]
[322147152,1712849456673,-500.0,0.00032876,2]
[322147153,1712849456683,-500.0,0.00032876,2]
[322147154,1712849456693,-176.21187021,0.00032876,2]
[322147155,1712849456703,-500.0,0.00032876,2]
[322147156,1712849456713,-850.31,0.00032876,2]
[322147157,1712849456723,-2411.99,0.00032876,2]
[322147158,1712849456733,-1526.07,0.00032876,2]
[322147159,1712849456742,-4606.11,0.00032876,2]
[322147160,1712849456752,-1566.16,0.00032876,2]
[322147161,1712849456763,-500.0,0.00032876,2]
[322147162,1712849456773,-3022.4,0.00032876,2]
[322147163,1712849456783,-500.0,0.00032876,2]
[322147164,1712849456792,-2685.27,0.00032876,2]
[322147165,1712849456802,-3737.42,0.00032876,2]
[322147166,1712849456812,-3999.28,0.00032876,2]
[322147167,1712849456822,-500.0,0.00032876,2]
[322147168,1712849456833,-2566.71,0.00032876,2]
[322147169,1712849456845,-500.0,0.00032876,2]
[322147170,1712849456855,-857.13,0.00032876,2]
[322147171,1712849456867,-1863.43,0.00032876,2]
[322147172,1712849456877,-500.0,0.00032876,2]
[322147173,1712849456887,-500.0,0.00032876,2]
[322147174,1712849456897,-500.0,0.00032876,2]
[322147175,1712849456908,-1197.54,0.00032876,2]
[322147176,1712849456917,-3318.07,0.00032876,2]
[322147177,1712849456927,-2332.95,0.00032876,2]
[322147178,1712849456936,-1447.94,0.00032876,2]
[322147179,1712849456947,-500.0,0.00032876,2]
[322147180,1712849456958,-500.0,0.00032876,2]
[322147181,1712849456968,-518.30965984,0.00032876,2]
[322147182,1712849456979,-500.0,0.00032876,2]
[322147183,1712849456989,-909.83,0.00032876,2]
[322147184,1712849456998,-613.7,0.00032876,2]
[322147185,1712849457009,-4539.79,0.00032876,2]
[322147186,1712849457020,-500.0,0.00032876,2]
[322147187,1712849457029,-1728.47,0.00032876,2]
[322147188,1712849457041,-739.23,0.00032876,2]
[322147189,1712849457053,-1670.25,0.00032876,2]
[322147190,1712849457065,-740.5,0.00032876,2]
[322147191,1712849457076,-4955.21,0.00032876,2]
[322147192,1712849457087,-592.01796246,0.00032876,2]
[322147193,1712849457098,-5637.95,0.00032876,2]
[322147194,1712849457111,-506.82762085,0.00032876,2]
[322147195,1712849457122,-1430.51,0.00032876,2]
[322147196,1712849457134,-500.0,0.00032876,2]
[322147197,1712849457145,-500.0,0.00032876,2]
[322147198,1712849457156,-500.0,0.00032876,2]
[322147199,1712849457167,-971.56,0.00032876,2]
[322147200,1712849457176,-500.0,0.00032876,2]
[322147201,1712849457188,-795.09,0.00032876,2]
[322147202,1712849457198,-500.0,0.00032876,2]
[322147203,1712849457208,-1242.11,0.00032876,2]
[322147204,1712849457218,-500.0,0.00032876,2]
[322147205,1712849457228,-5785.51,0.00032876,2]
[322147206,1712849457238,-786.81,0.00032876,2]
[322147207,1712849457248,-500.0,0.00032876,2]
[322147208,1712849457261,-500.0,0.00032876,2]
[322147209,1712849457271,-500.0,0.00032876,2]
[322147210,1712849457281,-9168.9,0.00032876,2]
[322147211,1712849457290,-500.0,0.00032876,2]
[322147212,1712849457300,-592.21,0.00032876,2]
[322147213,1712849457310,-4619.52,0.00032876,2]
[322147214,1712849457320,-500.0,0.00032876,2]
[322147215,1712849457330,-500.0,0.00032876,2]
[322147216,1712849457339,-5646.82,0.00032876,2]
[322147217,1712849457348,-500.0,0.00032876,2]
[322147218,1712849457358,-500.0,0.00032876,2]
[322147219,1712849457367,-6234.93,0.00032876,2]
[322147220,1712849457377,-1034.25,0.00032876,2]
[322147221,1712849457387,-500.0,0.00032876,2]
[322147222,1712849457397,-6841.85,0.00032876,2]
[322147223,1712849457407,-507.43,0.00032876,2]
[322147224,1712849457420,-713.48,0.00032876,2]
[322147225,1712849457431,-500.0,0.00032876,2]
[322147226,1712849457442,-3974.32,0.00032876,2]
[322147227,1712849457452,-1276.84,0.00032876,2]
[322147228,1712849457463,-542.93,0.00032876,2]
[322147229,1712849457472,-2531.9,0.00032876,2]
[322147230,1712849457482,-820.05,0.00032876,2]
[322147231,1712849457493,-903.05,0.00032876,2]
[322147232,1712849457505,-854.3,0.00032876,2]
[322147233,1712849457515,-500.0,0.00032876,2]
[322147234,1712849457524,-675.03,0.00032876,2]
[322147235,1712849457534,-4012.12,0.00032876,2]
[322147236,1712849457544,-10230.22,0.00032876,2]
[322147237,1712849457554,-600.0,0.00032876,2]
[322147238,1712849457563,-3940.6,0.00032876,2]
[322147239,1712849457577,-500.0,0.00032876,2]
[322147240,1712849457588,-629.24428361,0.00032876,2]
[322147241,1712849457598,-500.0,0.00032876,2]
[322147242,1712849457608,-500.0,0.00032876,2]
[322147243,1712849457619,-500.0,0.00032876,2]
[322147244,1712849457629,-198.36876398,0.000329,2]
[322147245,1712849457638,-850.0,0.00033,3]
[322147246,1712849457648,-330.54699852,0.00033106,7]
[322147247,1712849457658,-1000.0,0.00033159,2]
[322147248,1712849457669,-175.32,0.00033165,2]
[322147249,1712849457680,-938.77349724,0.00033244,6]
[322147250,1712849457691,-154.26842213,0.00033278,7]
[322147251,1712849457700,-199.26191228,0.00033324,2]
[322147252,1712849457710,-159.05632086,0.00033358,7]
[322147253,1712849457720,-2610.31096449,0.00033424,5]
[322147254,1712849457730,-113779.358393,0.00033424,7]
[322147255,1712849457750,-3972.0,0.00033424,7]
[322147256,1712849457801,-823.29,0.00032876,2]
[322147257,1712849457811,-393.85,0.00033424,7]
[322147259,1712849510678,393.98381102,0.00033499,120]
[322147335,1712850631946,-620.76154745,0.00020973,2]
[322147336,1712850631956,-1062.27095016,0.00020974,2]
[322147337,1712850631966,-533.77124594,0.00021,3]
[322147338,1712850632109,-16.22875406,0.00021,3]
[322147339,1712850632118,-1000.0,0.0002259,2]
[322147340,1712850632127,-164.79009812,0.000229,2]
[322147341,1712850632137,-600.0,0.00023,3]
[322147342,1712850632147,-650.0,0.00025,3]
[322147343,1712850632156,-150.17,0.00026738,2]
[322147344,1712850632165,-700.0,0.00027,3]
[322147345,1712850632176,-1399.97,0.00027939,2]
[322147346,1712850632185,-315.73,0.00028574,2]
[322147347,1712850632195,-1523.30682076,0.00028728,2]
[322147348,1712850632208,-24541.81317924,0.00028728,2]
[322147349,1712850632217,-395.77,0.00028728,2]
[322147350,1712850632227,-750.0,0.00029,3]
[322147351,1712850632236,-499.99,0.00029,2]
[322147352,1712850632246,-150.99,0.00029,2]
[322147353,1712850632255,-1858.82565684,0.00029,20]
[322147354,1712850632285,-179.25434316,0.00029,20]
[322147355,1712850632295,-383.18110222,0.00029,2]
[322147356,1712850632306,-931.45889778,0.00029,2]
[322147357,1712850632315,-335.33836772,0.00029409,2]
[322147358,1712850632331,-387.99999996,0.00029409,2]
[322147359,1712850632351,-1339.174,0.00029409,2]
[322147360,1712850632397,-17.66437761,0.00029409,2]
[322147361,1712850632409,-1819.0441308,0.00029409,2]
[322147364,1712850632422,-654.02840929,0.00029409,2]
[322147366,1712850632434,-496.346633,0.00029409,2]
[322147368,1712850632446,-730.35536255,0.00029409,2]
[322147371,1712850632459,-1230.08307765,0.00029409,2]
[322147373,1712850632469,-45.35191776,0.0003,2]
[322147376,1712850632487,-385.2665977,0.0003,2]
[322147378,1712850632500,-2860.88092348,0.0003,2]
[322147380,1712850632512,-2087.74,0.0003,2]
[322147382,1712850632524,-290.29680867,0.0003,2]
[322147384,1712850632533,-359.94,0.00030476,2]
[322147386,1712850632543,-47.75862836,0.00030496,2]
[322147422,1712850632561,-102.24137164,0.00030496,2]
[322147423,1712850632947,-250.0,0.00030555,2]
[322147424,1712850632963,-47.75862836,0.00030558,2]
[322147427,1712850637825,-202.24137164,0.00030558,2]
[322147428,1712850637835,-157.88,0.00030727,2]
[322147429,1712850637844,-315.73,0.00030837,2]
[322147430,1712850637855,-164.81,0.00030915,2]
[322147431,1712850637865,-2298.59009813,0.00030995,4]
[322147432,1712850637874,-800.0,0.00031,3]
[322147433,1712850637883,-460.87989018,0.00031,4]
[322147434,1712850637892,-1000.0,0.00031108,2]
[322147435,1712850637901,-167.21,0.00031774,2]
[322147436,1712850637910,-1004.3171534,0.00031868,4]
[322147437,1712850637920,-200.0,0.00032,2]
[322147438,1712850637929,-332.1406229,0.00032141,4]
[322147439,1712850637938,-1983.58008126,0.00032142,2]
[322147440,1712850637947,-157.88,0.00032328,2]
[322147441,1712850637958,-191.01064538,0.0003247,7]
[322147442,1712850637967,-1482.35,0.00032603,2]
[322147443,1712850637976,-787.49,0.00032603,2]
[322147444,1712850637985,-2068.41600853,0.00032699,2]
[322147445,1712850637994,-31251.76841769,0.00032699,2]
[322147446,1712850638003,-840.38800564,0.000327,6]
[322147447,1712850638013,-6134.86059096,0.00032765,7]
[322147448,1712850638022,-321.40413877,0.00032773,2]
[322147449,1712850638031,-6738.8009,0.00032776,2]
[322147450,1712850638040,-6863.5064,0.00032776,2]
[322147451,1712850638049,-188.96211589,0.00032776,4]
[322147452,1712850638058,-213.79909617,0.00032776,4]
[322147453,1712850638067,-2821.67130659,0.00032776,4]
[322147454,1712850638076,-152.77070344,0.00032776,2]
[322147455,1712850638086,-214.39582703,0.00032776,2]
[322147456,1712850638095,-161.8,0.00032788,2]
[322147457,1712850638105,-199.93832178,0.00032797,4]
[322147458,1712850638114,-1047.85825791,0.00032798,4]
[322147459,1712850638123,-195.93401084,0.00032798,4]
[322147460,1712850638133,-586.98322564,0.00032798,4]
[322147461,1712850638143,-224.19299856,0.00032798,4]
[322147462,1712850638151,-472.83649341,0.00032798,4]
[322147463,1712850638162,-161.06954375,0.00032798,4]
[322147464,1712850638171,-26557.41186352,0.00032798,2]
[322147470,1712850638759,-487.03681507,0.00032798,2]
[322147474,1712850638780,-93213.83546447,0.00032798,2]
[322147476,1712850638799,-3525.0493952,0.00032798,2]
[322147480,1712850638814,-2049.48793389,0.00032798,2]
[322147482,1712850638826,-4322.29381628,0.00032799,4]
[322147485,1712850638837,-4218.00957841,0.000328,2]
[322147507,1712850639105,-14026.79760002,0.000328,2]
[322147511,1712850639140,-34859.45954603,0.000328,2]
[322147512,1712850639153,-1608.66736121,0.000328,2]
[322147514,1712850639164,-2032.842812,0.000328,2]
[322147516,1712850639176,-7212.84956445,0.000328,2]
[322147518,1712850639188,-854.4499999,0.000328,2]
[322147520,1712850639200,-5212.63216031,0.000328,2]
[322147522,1712850639214,-12322.0773985,0.000328,2]
[322147524,1712850639226,-2160.75615926,0.000328,2]
[322147573,1712850639920,-1621.24956512,0.00032776,2]
[322147580,1712850639979,-1060.20000005,0.00032776,2]
[322147587,1712850640038,-1657.38516423,0.00032776,2]
[322147594,1712850640100,-3114.8052706,0.00032776,2]
[322147596,1712850640110,-3765.2947294,0.000328,2]
[322147598,1712850640122,-912.34002185,0.000328,2]
[322147601,1712850640135,-12180.28257893,0.000328,2]
[322147603,1712850640148,-347.57506821,0.000328,2]
[322147607,1712850640174,-7776.16762251,0.000328,2]
[322147609,1712850640186,-350.02,0.000328,2]
[322147748,1712850643091,-490.35302338,0.000328,2]
[322147749,1712850643151,-342.525165,0.000328,2]
[322147750,1712850643163,-759.4099345,0.000328,2]
[322147751,1712850643176,-13831.12217918,0.000328,2]
[322147752,1712850643211,-14894.99921165,0.000328,2]
[322147753,1712850643220,-2542.13,0.000328,4]
[322147754,1712850643229,-31898.86404748,0.00032873,4]
[322147755,1712850643238,-274.03487684,0.00032873,4]
[322147756,1712850643248,-778.88911183,0.00032873,2]
[322147757,1712850643257,-782.1358054,0.00032873,4]
[322147758,1712850643267,-4392.60201833,0.00032873,4]
[322147759,1712850643276,-201.79903001,0.00032874,4]
[322147760,1712850643286,-298619.95439254,0.00032875,4]
[322147761,1712850643296,-736.59194213,0.00032875,4]
[322147762,1712850643305,-190.36789189,0.00032875,2]
[322147763,1712850643315,-224.13785595,0.00032875,2]
[322147764,1712850643325,-532.0,0.00032876,5]
[322147765,1712850643334,-318.81804561,0.00032876,2]
[322147766,1712850643343,-501.71097096,0.00032876,2]
[322147767,1712850643353,-500.0,0.00032876,2]
[322147768,1712850643362,-500.0,0.00032876,2]
[322147769,1712850643372,-500.0,0.00032876,2]
[322147770,1712850643382,-500.0,0.00032876,2]
[322147771,1712850643391,-500.0,0.00032876,2]
[322147772,1712850643401,-500.0,0.00032876,2]
[322147773,1712850643410,-500.0,0.00032876,2]
[322147774,1712850643419,-500.0,0.00032876,2]
[322147775,1712850643428,-500.0,0.00032876,2]
[322147776,1712850643438,-500.0,0.00032876,2]
[322147777,1712850643447,-500.0,0.00032876,2]
[322147778,1712850643457,-384.76928675,0.00032876,2]
[322147779,1712850643468,-520.17508999,0.00032876,2]
[322147780,1712850643477,-500.0,0.00032876,2]
[322147781,1712850643487,-500.0,0.00032876,2]
[322147782,1712850643496,-649.29317955,0.00032876,2]
[322147783,1712850643506,-500.0,0.00032876,2]
[322147784,1712850643515,-500.0,0.00032876,2]
[322147785,1712850643524,-500.0,0.00032876,2]
[322147786,1712850643534,-500.0,0.00032876,2]
[322147787,1712850643543,-500.0,0.00032876,2]
[322147788,1712850643553,-500.0,0.00032876,2]
[322147789,1712850643562,-500.0,0.00032876,2]
[322147790,1712850643571,-500.0,0.00032876,2]
[322147791,1712850643580,-500.0,0.00032876,2]
[322147793,1712850643589,-500.0,0.00032876,2]
[322147794,1712850643599,-684.06,0.00032876,2]
[322147796,1712850643608,-500.0,0.00032876,2]
[322147798,1712850643617,-500.0,0.00032876,2]
[322147800,1712850643626,-500.0,0.00032876,2]
[322147802,1712850643635,-500.0,0.00032876,2]
[322147805,1712850643645,-500.0,0.00032876,2]
[322147806,1712850643655,-300.0,0.00032876,2]
[322147808,1712850643664,-500.0,0.00032876,2]
[322147810,1712850643673,-667.97,0.00032876,2]
[322147811,1712850643682,-514.8,0.00032876,2]
[322147812,1712850643691,-500.0,0.00032876,2]
[322147813,1712850643700,-500.0,0.00032876,2]
[322147814,1712850643710,-500.0,0.00032876,2]
[322147815,1712850643719,-500.0,0.00032876,2]
[322147816,1712850643729,-500.0,0.00032876,2]
[322147817,1712850643738,-500.0,0.00032876,2]
[322147818,1712850643747,-744.56,0.00032876,2]
[322147819,1712850643757,-525.01,0.00032876,2]
[322147820,1712850643766,-500.0,0.00032876,2]
[322147821,1712850643778,-500.0,0.00032876,2]
[322147822,1712850643790,-500.0,0.00032876,2]
[322147823,1712850643799,-500.0,0.00032876,2]
[322147824,1712850643809,-500.0,0.00032876,2]
[322147825,1712850643819,-580.65,0.00032876,2]
[322147826,1712850643828,-500.0,0.00032876,2]
[322147827,1712850643837,-632.78,0.00032876,2]
[322147828,1712850643847,-500.0,0.00032876,2]
[322147829,1712850643857,-500.0,0.00032876,2]
[322147830,1712850643867,-1076.79,0.00032876,2]
[322147831,1712850643877,-500.0,0.00032876,2]
[322147832,1712850643887,-500.0,0.00032876,2]
[322147833,1712850643896,-1032.57,0.00032876,2]
[322147834,1712850643905,-500.0,0.00032876,2]
[322147835,1712850643914,-500.0,0.00032876,2]
[322147836,1712850643924,-500.0,0.00032876,2]
[322147837,1712850643933,-500.0,0.00032876,2]
[322147838,1712850643943,-500.0,0.00032876,2]
[322147839,1712850643954,-500.0,0.00032876,2]
[322147840,1712850643965,-500.0,0.00032876,2]
[322147841,1712850643975,-616.27,0.00032876,2]
[322147842,1712850643985,-815.09,0.00032876,2]
[322147843,1712850643995,-500.0,0.00032876,2]
[322147844,1712850644005,-500.0,0.00032876,2]
[322147845,1712850644015,-500.0,0.00032876,2]
[322147846,1712850644024,-500.0,0.00032876,2]
[322147847,1712850644033,-500.0,0.00032876,2]
[322147848,1712850644043,-500.0,0.00032876,2]
[322147849,1712850644055,-583.0031707,0.00032876,2]
[322147850,1712850644064,-500.0,0.00032876,2]
[322147851,1712850644074,-500.0,0.00032876,2]
[322147852,1712850644083,-500.0,0.00032876,2]
[322147853,1712850644092,-1028.34,0.00032876,2]
[322147854,1712850644102,-500.0,0.00032876,2]
[322147855,1712850644111,-500.0,0.00032876,2]
[322147856,1712850644121,-500.0,0.00032876,2]
[322147857,1712850644130,-505.59,0.00032876,2]
[322147858,1712850644139,-500.0,0.00032876,2]
[322147859,1712850644149,-500.0,0.00032876,2]
[322147860,1712850644159,-500.0,0.00032876,2]
[322147861,1712850644168,-500.0,0.00032876,2]
[322147862,1712850644179,-500.0,0.00032876,2]
[322147863,1712850644188,-500.0,0.00032876,2]
[322147864,1712850644198,-482.09797358,0.00032876,2]
[322147865,1712850644207,-500.0,0.00032876,2]
[322147866,1712850644218,-500.0,0.00032876,2]
[322147867,1712850644226,-500.0,0.00032876,2]
[322147868,1712850644234,-500.0,0.00032876,2]
[322147869,1712850644243,-516.04,0.00032876,2]
[322147870,1712850644252,-725.11,0.00032876,2]
[322147871,1712850644261,-364.00574811,0.00032876,2]
[322147872,1712850644271,-832.19,0.00032876,2]
[322147873,1712850644281,-500.0,0.00032876,2]
[322147874,1712850644290,-500.0,0.00032876,2]
[322147875,1712850644299,-242.92172185,0.00032876,2]
[322147876,1712850644309,-500.0,0.00032876,2]
[322147877,1712850644318,-500.0,0.00032876,2]
[322147878,1712850644327,-500.0,0.00032876,2]
[322147879,1712850644336,-500.0,0.00032876,2]
[322147880,1712850644345,-723.65,0.00032876,2]
[322147881,1712850644355,-326.89230421,0.00032876,2]
[322147882,1712850644364,-647.29,0.00032876,2]
[322147883,1712850644374,-611.22575437,0.00032876,2]
[322147884,1712850644382,-500.0,0.00032876,2]
[322147885,1712850644391,-500.0,0.00032876,2]
[322147886,1712850644401,-500.0,0.00032876,2]
[322147887,1712850644410,-500.0,0.00032876,2]
[322147888,1712850644419,-822.25,0.00032876,2]
[322147889,1712850644429,-469.79710399,0.00032876,2]
[322147890,1712850644438,-500.0,0.00032876,2]
[322147891,1712850644447,-500.0,0.00032876,2]
[322147892,1712850644457,-500.0,0.00032876,2]
[322147893,1712850644467,-500.0,0.00032876,2]
[322147894,1712850644477,-500.0,0.00032876,2]
[322147895,1712850644486,-500.0,0.00032876,2]
[322147896,1712850644495,-500.0,0.00032876,2]
[322147897,1712850644505,-500.0,0.00032876,2]
[322147898,1712850644516,-512.89,0.00032876,2]
[322147899,1712850644526,-363.67590273,0.00032876,2]
[322147900,1712850644536,-500.0,0.00032876,2]
[322147901,1712850644546,-721.77,0.00032876,2]
[322147902,1712850644555,-500.0,0.00032876,2]
[322147903,1712850644565,-912.42,0.00032876,2]
[322147904,1712850644574,-500.0,0.00032876,2]
[322147905,1712850644583,-500.0,0.00032876,2]
[322147906,1712850644592,-500.0,0.00032876,2]
[322147907,1712850644601,-500.0,0.00032876,2]
[322147908,1712850644611,-500.0,0.00032876,2]
[322147909,1712850644620,-500.0,0.00032876,2]
[322147910,1712850644630,-500.0,0.00032876,2]
[322147911,1712850644639,-510.94,0.00032876,2]
[322147912,1712850644648,-500.0,0.00032876,2]
[322147913,1712850644658,-500.0,0.00032876,2]
[322147914,1712850644667,-500.0,0.00032876,2]
[322147915,1712850644677,-500.0,0.00032876,2]
[322147916,1712850644686,-500.0,0.00032876,2]
[322147917,1712850644696,-500.0,0.00032876,2]
[322147918,1712850644705,-500.0,0.00032876,2]
[322147919,1712850644716,-500.0,0.00032876,2]
[322147920,1712850644725,-748.97,0.00032876,2]
[322147921,1712850644735,-500.0,0.00032876,2]
[322147922,1712850644744,-500.0,0.00032876,2]
[322147923,1712850644754,-500.0,0.00032876,2]
[322147924,1712850644763,-574.32,0.00032876,2]
[322147925,1712850644773,-500.0,0.00032876,2]
[322147926,1712850644783,-327.32444834,0.00032876,2]
[322147927,1712850644793,-500.0,0.00032876,2]
[322147928,1712850644802,-500.0,0.00032876,2]
[322147929,1712850644811,-500.0,0.00032876,2]
[322147930,1712850644820,-500.0,0.00032876,2]
[322147931,1712850644830,-887.88,0.00032876,2]
[322147932,1712850644839,-906.1,0.00032876,2]
[322147933,1712850644849,-500.0,0.00032876,2]